[Event "Mitropa Cup Open 2019"]
[Site "Radenci"]
[Date "2019.06.01"]
[Round "6.14"]
[White "Druska, Juraj"]
[Black "Vykouk, Jan"]
[Result "1/2-1/2"]
[ECO "B31"]
[WhiteElo "2460"]
[BlackElo "2451"]
[Annotator "ChessBase"]
[PlyCount "129"]
[EventDate "2019.05.27"]
[EventType "team-tourn"]
[EventCountry "SLO"]
[SourceTitle "playchess.com"]
[Source "ChessBase"]
[SourceQuality "1"]
[WhiteTeam "Slovakia"]
[BlackTeam "Czech Republic"]
[WhiteTeamCountry "SVK"]
[BlackTeamCountry "CZE"]
[TimeControl "40/5400+30:1800+30"]

1. e4 {[%emt 0:02:25]} c5 {[%emt 0:00:00]} 2. Nf3 {[%emt 0:00:09]} Nc6 {[%emt 0:00:00]} 3. Bb5 {[%emt 0:00:52]} g6 {[%emt 0:00:00]} 4. O-O {[%emt 0:00:06]} Bg7 {[%emt 0:00:00]} 5. Re1 {[%emt 0:00:04]} Nf6 {[%emt 0:00:13]} 6. Bxc6 {[%emt 0:00:25]} dxc6 {[%emt 0:01:30]} 7. d3 {[%emt 0:00:20]} O-O {[%emt 0:00:14]} 8. h3 {[%emt 0:00:38]} Nd7 {[%emt 0:01:26]} 9. e5 {[%emt 0:02:46]} f6 {[%emt 0:14:19]} 10. exf6 {[%emt 0:23:38]} exf6 {[%emt 0:00:07]} 11. Bf4 {[%emt 0:00:20]} Re8 {[%emt 0:00:41]} 12. Nbd2 {[%emt 0:07:39]} Rxe1+ {[%emt 0:00:13]} 13. Qxe1 {[%emt 0:00:28]} Nf8 {[%emt 0:00:06]} 14. Qe3 {[%emt 0:14:34]} Ne6 {[%emt 0:00:47]} 15. Re1 {[%emt 0:00:14]} Bd7 {[%emt 0:01:14]} 16. Bd6 {[%emt 0:24:23]} Qa5 {[%emt 0:28:03]} 17. Nb3 {[%emt 0:07:37]} Qxa2 {[%emt 0:00:31]} 18. Nxc5 {[%emt 0:01:07]} Nxc5 {[%emt 0:00:05]} 19. Qxc5 {[%emt 0:00:07]} Re8 {[%emt 0:02:15]} 20. Rxe8+ {[%emt 0:00:58]} Bxe8 {[%emt 0:00:04]} 21. Qe3 {[%emt 0:00:13]} Bf7 {[%emt 0:00:54]} 22. c4 {[%emt 0:01:46]} Qxb2 {[%emt 0:03:08]} 23. Qxa7 {[%emt 0:01:48]} h5 {[%emt 0:01:26]} 24. Kh2 {[%emt 0:02:56]} Qb3 {[%emt 0:01:54]} 25. Qe3 {[%emt 0:01:58]} Qc3 {[%emt 0:04:55]} 26. Nd4 {[%emt 0:01:43]} Qa1 {[%emt 0:07:48]} 27. f4 {[%emt 0:00:48]} Qa8 {[%emt 0:05:21]} 28. Qe7 {[%emt 0:00:23]} Qc8 {[%emt 0:01:04]} 29. f5 {[%emt 0:02:36]} gxf5 {[%emt 0:00:04]} 30. Bf4 {[%emt 0:00:17]} Be8 {[%emt 0:08:18]} 31. Qc5 {[%emt 0:01:33]} Qd7 {[%emt 0:03:05]} 32. Nxf5 {[%emt 0:00:32]} b6 {[%emt 0:00:47]} 33. Qe3 {[%emt 0:00:32]} Qxf5 {[%emt 0:00:52]} 34. Qxe8+ {[%emt 0:00:00]} Kh7 {[%emt 0:00:01]} 35. Bd6 {[%emt 0:00:30]} Bh6 {[%emt 0:03:41]} 36. Qe7+ {[%emt 0:00:39]} Kg6 {[%emt 0:00:21]} 37. Qe8+ {[%emt 0:00:14]} Kh7 {[%emt 0:00:01]} 38. Qf7+ {[%emt 0:01:00]} Kh8 {[%emt 0:00:05]} 39. Qc7 {[%emt 0:00:37]} Qxd3 {[%emt 0:06:24]} 40. Qxc6 {[%emt 0:00:00]} Qe3 {[%emt 0:00:00]} 41. Qc8+ {[%emt 0:07:48]} Kg7 {[%emt 0:02:52]} 42. Qf5 {[%emt 0:02:49]} Bg5 {[%emt 0:01:22]} 43. Bg3 {[%emt 0:03:49]} h4 {[%emt 0:01:47]} 44. Bc7 {[%emt 0:02:38]} Qd4 {[%emt 0:03:07]} 45. Qe6 {[%emt 0:06:17]} Bf4+ {[%emt 0:00:19]} 46. Bxf4 {[%emt 0:00:02]} Qxf4+ {[%emt 0:00:06]} 47. Kg1 {[%emt 0:00:08]} Qd4+ {[%emt 0:01:00]} 48. Kf1 {[%emt 0:00:09]} Qd1+ {[%emt 0:05:47]} 49. Qe1 {[%emt 0:00:11]} Qd3+ {[%emt 0:00:04]} 50. Qe2 {[%emt 0:00:08]} Qd4 {[%emt 0:01:39]} 51. Qe6 {[%emt 0:06:12]} Qd1+ {[%emt 0:00:09]} 52. Kf2 {[%emt 0:00:05]} Qd2+ {[%emt 0:00:07]} 53. Kf3 {[%emt 0:02:48]} Qd3+ {[%emt 0:00:08]} 54. Qe3 {[%emt 0:00:06]} Qxc4 {[%emt 0:00:15]} 55. Qxb6 {[%emt 0:00:12]} Qf1+ {[%emt 0:01:45]} 56. Qf2 {[%emt 0:00:22]} Qxf2+ {[%emt 0:00:23]} 57. Kxf2 {[%emt 0:00:02]} Kg6 {[%emt 0:00:08]} 58. Ke3 {[%emt 0:01:44]} Kg5 {[%emt 0:06:15]} 59. Ke4 {[%emt 0:00:13]} Kg6 {[%emt 0:00:40]} 60. Kf4 {[%emt 0:00:29]} f5 {[%emt 0:00:05]} 61. Ke5 {[%emt 0:00:37]} Kg5 {[%emt 0:00:04]} 62. Ke6 {[%emt 0:00:03]} Kg6 {[%emt 0:00:05]} 63. Ke5 {[%emt 0:03:02]} Kg5 {[%emt 0:00:04]} 64. Ke6 {[%emt 0:00:04]} Kg6 {[%emt 0:00:05]} 65. Ke5 {[%emt 0:00:03]} 1/2-1/2

[Event "Mitropa Cup Open 2019"]
[Site "Radenci"]
[Date "2019.06.01"]
[Round "6.15"]
[White "Zilka, Stepan"]
[Black "Pechac, Jergus"]
[Result "1-0"]
[ECO "C45"]
[WhiteElo "2527"]
[BlackElo "2461"]
[Annotator "ChessBase"]
[PlyCount "91"]
[EventDate "2019.05.27"]
[EventType "team-tourn"]
[EventCountry "SLO"]
[SourceTitle "playchess.com"]
[Source "ChessBase"]
[SourceQuality "1"]
[WhiteTeam "Czech Republic"]
[BlackTeam "Slovakia"]
[WhiteTeamCountry "CZE"]
[BlackTeamCountry "SVK"]
[TimeControl "40/5400+30:1800+30"]

1. e4 {[%emt 0:00:00]} e5 {[%emt 0:02:59]} 2. Nf3 {[%emt 0:00:00]} Nc6 {[%emt 0:00:04]} 3. d4 {[%emt 0:00:00]} exd4 {[%emt 0:00:06]} 4. Nxd4 {[%emt 0:00:00]} Nf6 {[%emt 0:00:06]} 5. Nxc6 {[%emt 0:00:00]} bxc6 {[%emt 0:00:06]} 6. e5 {[%emt 0:00:00]} Qe7 {[%emt 0:00:06]} 7. Qe2 {[%emt 0:00:00]} Nd5 {[%emt 0:00:04]} 8. h4 {[%emt 0:00:00]} a5 {[%emt 0:00:03]} 9. g3 {[%emt 0:02:10]} Ba6 {[%emt 0:01:09]} 10. c4 {[%emt 0:00:13]} Qe6 {[%emt 0:08:29]} 11. Bh3 {[%emt 0:09:10]} Bb4+ {[%emt 0:00:07]} 12. Nd2 {[%emt 0:01:58]} Qg6 {[%emt 0:12:43]} 13. a3 {[%emt 0:00:22]} Bxd2+ {[%emt 0:00:43]} 14. Bxd2 {[%emt 0:00:22]} Qc2 {[%emt 0:05:32]} 15. Rc1 {[%emt 0:00:40]} Qxb2 {[%emt 0:00:24]} 16. O-O {[%emt 0:00:35]} Nb6 {[%emt 0:02:01]} 17. Rfd1 {[%emt 0:09:22]} Qxa3 {[%emt 0:03:02]} 18. Qg4 {[%emt 0:04:52]} O-O-O {[%emt 0:06:53]} 19. c5 {[%emt 0:12:22]} Nd5 {[%emt 0:08:51]} 20. Qd4 {[%emt 0:00:05]} Rde8 {[%emt 0:04:03]} 21. Ra1 {[%emt 0:03:40]} Qd3 {[%emt 0:05:48]} 22. Qa4 {[%emt 0:03:00]} Qb5 {[%emt 0:06:10]} 23. Qg4 {[%emt 0:10:14]} Qxc5 {[%emt 0:17:33]} 24. Qxd7+ {[%emt 0:06:25]} Kb8 {[%emt 0:00:04]} 25. Rdc1 {[%emt 0:03:28]} Qe7 {[%emt 0:03:45]} 26. Qxc6 {[%emt 0:04:20]} Nb6 {[%emt 0:00:13]} 27. Bg2 {[%emt 0:08:55]} Qd7 {[%emt 0:02:34]} 28. Qxd7 {[%emt 0:05:22]} Nxd7 {[%emt 0:00:05]} 29. Bxa5 {[%emt 0:00:11]} Rc8 {[%emt 0:01:39]} 30. Rcb1+ {[%emt 0:04:38]} Ka7 {[%emt 0:00:12]} 31. Bf1 {[%emt 0:01:22]} Rb8 {[%emt 0:02:35]} 32. Rxb8 {[%emt 0:03:04]} Nxb8 {[%emt 0:00:04]} 33. Bxc7 {[%emt 0:00:20]} Kb7 {[%emt 0:00:10]} 34. Bxb8 {[%emt 0:00:10]} Bxf1 {[%emt 0:00:04]} 35. Rb1+ {[%emt 0:00:04]} Ka8 {[%emt 0:00:22]} 36. Kxf1 {[%emt 0:00:07]} Rxb8 {[%emt 0:00:04]} 37. Ra1+ {[%emt 0:00:07]} Kb7 {[%emt 0:00:07]} 38. Rb1+ {[%emt 0:00:04]} Ka8 {[%emt 0:00:03]} 39. Rxb8+ {[%emt 0:00:24]} Kxb8 {[%emt 0:00:03]} 40. Ke2 {[%emt 0:00:00]} Kc7 {[%emt 0:00:00]} 41. Kd3 {[%emt 0:00:42]} Kd7 {[%emt 0:01:01]} 42. Ke4 {[%emt 0:01:12]} Ke7 {[%emt 0:02:33]} 43. Kf5 {[%emt 0:04:01]} f6 {[%emt 0:00:48]} 44. exf6+ {[%emt 0:04:00]} gxf6 {[%emt 0:00:15]} 45. g4 {[%emt 0:00:56]} Kf7 {[%emt 0:00:15]} 46. g5 {[%emt 0:03:06]} 1-0

[Event "Mitropa Cup Open 2019"]
[Site "Radenci"]
[Date "2019.06.01"]
[Round "6.16"]
[White "Sahidi, Samir"]
[Black "Miesbauer, Jan"]
[Result "0-1"]
[ECO "B88"]
[WhiteElo "2400"]
[BlackElo "2407"]
[Annotator "ChessBase"]
[PlyCount "66"]
[EventDate "2019.05.27"]
[EventType "team-tourn"]
[EventCountry "SLO"]
[SourceTitle "playchess.com"]
[Source "ChessBase"]
[SourceQuality "1"]
[WhiteTeam "Slovakia"]
[BlackTeam "Czech Republic"]
[WhiteTeamCountry "SVK"]
[BlackTeamCountry "CZE"]
[TimeControl "40/5400+30:1800+30"]

1. e4 {[%emt 0:00:00]} c5 {[%emt 0:00:00]} 2. Nf3 {[%emt 0:00:00]} Nc6 {[%emt 0:00:08]} 3. d4 {[%emt 0:00:51]} cxd4 {[%emt 0:00:06]} 4. Nxd4 {[%emt 0:00:13]} Nf6 {[%emt 0:00:35]} 5. Nc3 {[%emt 0:00:31]} d6 {[%emt 0:00:29]} 6. Bc4 {[%emt 0:04:18]} e6 {[%emt 0:00:39]} 7. Be3 {[%emt 0:02:42]} Be7 {[%emt 0:01:03]} 8. Bb3 {[%emt 0:01:20]} a6 {[%emt 0:00:51]} 9. f4 {[%emt 0:04:38]} Qc7 {[%emt 0:02:32]} 10. Qf3 {[%emt 0:08:20]} b5 {[%emt 0:23:11]} 11. a3 {[%emt 0:03:50]} Bb7 {[%emt 0:01:44]} 12. g4 {[%emt 0:04:56]} d5 {[%emt 0:06:26]} 13. e5 {[%emt 0:03:59]} Ne4 {[%emt 0:05:08]} 14. Nxc6 {[%emt 0:08:24]} Nxc3 {[%emt 0:03:45]} 15. Nd4 {[%emt 0:01:33]} Na4 {[%emt 0:02:44]} 16. Bxa4 {[%emt 0:01:32]} bxa4 {[%emt 0:00:05]} 17. O-O {[%emt 0:00:20]} h5 {[%emt 0:07:14]} 18. gxh5 {[%emt 0:04:05]} O-O-O {[%emt 0:00:51]} 19. Rae1 {[%emt 0:02:00]} Bc5 {[%emt 0:05:15]} 20. Bf2 {[%emt 0:03:59]} Qb6 {[%emt 0:01:36]} 21. c3 {[%emt 0:00:12]} Rh6 {[%emt 0:03:43]} 22. f5 {[%emt 0:02:13]} Rdh8 {[%emt 0:00:56]} 23. Qg4 {[%emt 0:03:58]} Kb8 {[%emt 0:02:25]} 24. Re2 {[%emt 0:05:16]} Rxh5 {[%emt 0:01:49]} 25. Bg3 {[%emt 0:00:45]} exf5 {[%emt 0:04:51]} 26. Qxg7 {[%emt 0:02:55]} Bxd4+ {[%emt 0:00:35]} 27. cxd4 {[%emt 0:00:07]} Qxd4+ {[%emt 0:00:08]} 28. Ref2 {[%emt 0:05:55]} Ka8 {[%emt 0:02:53]} 29. Qxf7 {[%emt 0:01:23]} Rg5 {[%emt 0:03:29]} 30. e6 {[%emt 0:03:14]} Qe3 {[%emt 0:01:48]} 31. e7 {[%emt 0:02:30]} d4 {[%emt 0:01:06]} 32. e8=Q+ {[%emt 0:07:20]} Rxe8 {[%emt 0:00:06]} 33. Qc7 {[%emt 0:00:12]} Rh8 {[%emt 0:00:24]} 0-1

[Event "Mitropa Cup Open 2019"]
[Site "Radenci"]
[Date "2019.06.01"]
[Round "6.17"]
[White "Stella, Andrea"]
[Black "Travadon, Loic"]
[Result "1-0"]
[ECO "A84"]
[WhiteElo "2511"]
[BlackElo "2441"]
[Annotator "ChessBase"]
[PlyCount "79"]
[EventDate "2019.05.27"]
[EventType "team-tourn"]
[EventCountry "SLO"]
[SourceTitle "playchess.com"]
[Source "ChessBase"]
[SourceQuality "1"]
[WhiteTeam "Italy"]
[BlackTeam "France"]
[WhiteTeamCountry "ITA"]
[BlackTeamCountry "FRA"]
[TimeControl "40/5400+30:1800+30"]

1. d4 {[%emt 0:00:00]} d5 {[%emt 0:00:00]} 2. c4 {[%emt 0:00:20]} c6 {[%emt 0:00:00]} 3. Nf3 {[%emt 0:00:27]} e6 {[%emt 0:00:00]} 4. e3 {[%emt 0:00:47]} Bd6 {[%emt 0:00:12]} 5. Bd3 {[%emt 0:01:05]} f5 {[%emt 0:00:44]} 6. O-O {[%emt 0:00:45]} Nf6 {[%emt 0:00:05]} 7. Ne5 {[%emt 0:03:22]} O-O {[%emt 0:00:41]} 8. f4 {[%emt 0:00:25]} c5 {[%emt 0:11:15]} 9. cxd5 {[%emt 0:07:36]} cxd4 {[%emt 0:05:50]} 10. exd4 {[%emt 0:14:02]} Nxd5 {[%emt 0:01:07]} 11. Nc3 {[%emt 0:03:48]} Bxe5 {[%emt 0:00:12]} 12. dxe5 {[%emt 0:02:28]} Nxc3 {[%emt 0:30:49]} 13. bxc3 {[%emt 0:00:15]} Qb6+ {[%emt 0:12:19]} 14. Kh1 {[%emt 0:02:50]} Rd8 {[%emt 0:01:00]} 15. Ba3 {[%emt 0:06:58]} Qc6 {[%emt 0:10:12]} 16. Bd6 {[%emt 0:08:50]} Nd7 {[%emt 0:03:00]} 17. Rb1 {[%emt 0:08:15]} a6 {[%emt 0:01:29]} 18. Qf3 {[%emt 0:27:47]} Qxf3 {[%emt 0:00:30]} 19. Rxf3 {[%emt 0:00:02]} b5 {[%emt 0:01:10]} 20. c4 {[%emt 0:00:27]} Bb7 {[%emt 0:00:42]} 21. Re3 {[%emt 0:01:44]} Nb6 {[%emt 0:01:21]} 22. Ree1 {[%emt 0:01:40]} Rdc8 {[%emt 0:01:19]} 23. cxb5 {[%emt 0:00:32]} Nd5 {[%emt 0:00:40]} 24. Rf1 {[%emt 0:04:06]} Ne3 {[%emt 0:03:28]} 25. Rf2 {[%emt 0:00:49]} axb5 {[%emt 0:01:20]} 26. Bxb5 {[%emt 0:00:32]} Be4 {[%emt 0:02:19]} 27. Re1 {[%emt 0:02:08]} Ng4 {[%emt 0:03:22]} 28. Rb2 {[%emt 0:00:23]} Bd5 {[%emt 0:01:25]} 29. h3 {[%emt 0:01:11]} Nh6 {[%emt 0:00:01]} 30. a4 {[%emt 0:00:03]} Rc3 {[%emt 0:00:09]} 31. Kh2 {[%emt 0:00:17]} Nf7 {[%emt 0:00:21]} 32. Bb4 {[%emt 0:00:43]} Rc7 {[%emt 0:00:25]} 33. Bd2 {[%emt 0:00:40]} Rb7 {[%emt 0:00:26]} 34. Rc1 {[%emt 0:00:27]} g5 {[%emt 0:00:19]} 35. Rbc2 {[%emt 0:00:12]} Rbb8 {[%emt 0:00:42]} 36. Rc3 {[%emt 0:01:08]} Kg7 {[%emt 0:00:20]} 37. fxg5 {[%emt 0:00:11]} Nxe5 {[%emt 0:01:42]} 38. Bf4 {[%emt 0:00:29]} Nf7 {[%emt 0:00:40]} 39. Bxb8 {[%emt 0:00:11]} Rxb8 {[%emt 0:00:00]} 40. Rc8 {[%emt 0:00:00]} 1-0

[Event "Mitropa Cup Open 2019"]
[Site "Radenci"]
[Date "2019.06.01"]
[Round "6.18"]
[White "Joie, Sebastien"]
[Black "Sonis, Francesco"]
[Result "1/2-1/2"]
[ECO "D11"]
[WhiteElo "2425"]
[BlackElo "2475"]
[Annotator "ChessBase"]
[PlyCount "160"]
[EventDate "2019.05.27"]
[EventType "team-tourn"]
[EventCountry "SLO"]
[SourceTitle "playchess.com"]
[Source "ChessBase"]
[SourceQuality "1"]
[WhiteTeam "France"]
[BlackTeam "Italy"]
[WhiteTeamCountry "FRA"]
[BlackTeamCountry "ITA"]
[TimeControl "40/5400+30:1800+30"]

1. Nf3 {[%emt 0:00:00]} d5 {[%emt 0:00:00]} 2. g3 {[%emt 0:00:00]} c6 {[%emt 0:00:03]} 3. Bg2 {[%emt 0:00:00]} Bg4 {[%emt 0:00:06]} 4. Ne5 {[%emt 0:00:00]} Bf5 {[%emt 0:00:15]} 5. d4 {[%emt 0:00:00]} Nf6 {[%emt 0:00:17]} 6. O-O {[%emt 0:00:03]} e6 {[%emt 0:00:05]} 7. c4 {[%emt 0:00:02]} Nbd7 {[%emt 0:00:05]} 8. Nc3 {[%emt 0:00:05]} Be7 {[%emt 0:01:07]} 9. Qb3 {[%emt 0:00:09]} Qb6 {[%emt 0:00:56]} 10. Nxd7 {[%emt 0:00:05]} Nxd7 {[%emt 0:00:11]} 11. e4 {[%emt 0:00:03]} dxe4 {[%emt 0:02:13]} 12. Nxe4 {[%emt 0:00:09]} O-O {[%emt 0:11:09]} 13. Be3 {[%emt 0:00:28]} Rfd8 {[%emt 0:01:42]} 14. Qc3 {[%emt 0:00:21]} Nf6 {[%emt 0:15:09]} 15. Nxf6+ {[%emt 0:03:38]} Bxf6 {[%emt 0:00:04]} 16. c5 {[%emt 0:00:08]} Qc7 {[%emt 0:04:27]} 17. Bf4 {[%emt 0:00:51]} Qe7 {[%emt 0:01:20]} 18. Rfd1 {[%emt 0:04:57]} Rd7 {[%emt 0:02:35]} 19. Bd6 {[%emt 0:01:19]} Qd8 {[%emt 0:00:54]} 20. Rd2 {[%emt 0:09:02]} Bg5 {[%emt 0:02:39]} 21. f4 {[%emt 0:00:37]} Be7 {[%emt 0:00:11]} 22. Bxe7 {[%emt 0:00:07]} Qxe7 {[%emt 0:00:03]} 23. b4 {[%emt 0:09:35]} Rad8 {[%emt 0:00:46]} 24. Re1 {[%emt 0:00:13]} a6 {[%emt 0:07:50]} 25. h3 {[%emt 0:04:31]} Qf6 {[%emt 0:07:12]} 26. Re5 {[%emt 0:00:12]} h6 {[%emt 0:02:34]} 27. g4 {[%emt 0:00:58]} Bg6 {[%emt 0:01:57]} 28. Qe3 {[%emt 0:01:06]} Qh4 {[%emt 0:03:52]} 29. a4 {[%emt 0:03:57]} f6 {[%emt 0:08:56]} 30. Rxe6 {[%emt 0:00:42]} Bf7 {[%emt 0:00:02]} 31. Re4 {[%emt 0:03:30]} Kf8 {[%emt 0:00:16]} 32. Re2 {[%emt 0:05:23]} f5 {[%emt 0:00:15]} 33. gxf5 {[%emt 0:05:02]} Qf6 {[%emt 0:00:25]} 34. Rd2 {[%emt 0:01:35]} Qxf5 {[%emt 0:00:34]} 35. Kh2 {[%emt 0:00:45]} Bd5 {[%emt 0:09:26]} 36. Re5 {[%emt 0:00:09]} Qf7 {[%emt 0:01:04]} 37. Be4 {[%emt 0:05:14]} Bxe4 {[%emt 0:01:07]} 38. Rxe4 {[%emt 0:00:42]} Qf6 {[%emt 0:03:10]} 39. Re6 {[%emt 0:06:51]} Qf5 {[%emt 0:03:50]} 40. Re5 {[%emt 0:00:00]} Qf7 {[%emt 0:00:00]} 41. f5 {[%emt 0:10:14]} Kg8 {[%emt 0:02:18]} 42. Rg2 {[%emt 0:10:02]} Kh7 {[%emt 0:06:21]} 43. Rg4 {[%emt 0:10:45]} Qa2+ {[%emt 0:05:37]} 44. Kg3 {[%emt 0:00:01]} Qf7 {[%emt 0:00:05]} 45. h4 {[%emt 0:08:00]} Kh8 {[%emt 0:03:07]} 46. f6 {[%emt 0:01:15]} Qxf6 {[%emt 0:01:45]} 47. Re8+ {[%emt 0:00:07]} Kh7 {[%emt 0:00:03]} 48. Qe4+ {[%emt 0:00:05]} g6 {[%emt 0:00:16]} 49. Re6 {[%emt 0:00:04]} Qf5 {[%emt 0:00:37]} 50. Re7+ {[%emt 0:00:40]} Kh8 {[%emt 0:00:17]} 51. Rxg6 {[%emt 0:09:04]} Qxe4 {[%emt 0:01:40]} 52. Rxh6+ {[%emt 0:01:35]} Kg8 {[%emt 0:00:02]} 53. Rxe4 {[%emt 0:00:05]} Rxd4 {[%emt 0:00:04]} 54. Rhe6 {[%emt 0:01:24]} Rxe4 {[%emt 0:00:50]} 55. Rxe4 {[%emt 0:00:01]} Kf7 {[%emt 0:03:56]} 56. Rf4+ {[%emt 0:00:01]} Kg6 {[%emt 0:01:21]} 57. a5 {[%emt 0:01:46]} Rd1 {[%emt 0:00:57]} 58. Kf3 {[%emt 0:00:40]} Re1 {[%emt 0:00:47]} 59. Rg4+ {[%emt 0:01:30]} Kf6 {[%emt 0:00:22]} 60. Rf4+ {[%emt 0:00:27]} Ke5 {[%emt 0:00:42]} 61. Rg4 {[%emt 0:00:33]} Kf6 {[%emt 0:00:01]} 62. h5 {[%emt 0:00:40]} Rh1 {[%emt 0:01:22]} 63. Rg6+ {[%emt 0:00:18]} Kf5 {[%emt 0:00:59]} 64. Rg7 {[%emt 0:00:36]} Rxh5 {[%emt 0:00:13]} 65. Ke3 {[%emt 0:01:18]} Ke6 {[%emt 0:01:57]} 66. Rxb7 {[%emt 0:00:49]} Kd5 {[%emt 0:00:08]} 67. Rb6 {[%emt 0:00:35]} Rh3+ {[%emt 0:00:11]} 68. Kf4 {[%emt 0:02:45]} Rb3 {[%emt 0:00:45]} 69. Kf5 {[%emt 0:00:02]} Rf3+ {[%emt 0:00:09]} 70. Kg4 {[%emt 0:00:01]} Rb3 {[%emt 0:00:06]} 71. Kf4 {[%emt 0:00:02]} Rb1 {[%emt 0:00:44]} 72. Ke3 {[%emt 0:04:47]} Rb3+ {[%emt 0:01:32]} 73. Kf4 {[%emt 0:01:55]} Rb1 {[%emt 0:00:03]} 74. Ke3 {[%emt 0:00:01]} Rb3+ {[%emt 0:00:05]} 75. Kd2 {[%emt 0:00:22]} Kc4 {[%emt 0:00:22]} 76. Rxa6 {[%emt 0:01:17]} Rxb4 {[%emt 0:00:03]} 77. Rxc6 {[%emt 0:00:19]} Ra4 {[%emt 0:00:10]} 78. Ke3 {[%emt 0:01:51]} Rxa5 {[%emt 0:00:04]} 79. Ke4 {[%emt 0:00:03]} Rxc5 {[%emt 0:00:05]} 80. Rxc5+ {[%emt 0:00:02]} Kxc5 {[%emt 0:00:06]} 1/2-1/2

[Event "Mitropa Cup Open 2019"]
[Site "Radenci"]
[Date "2019.06.01"]
[Round "6.19"]
[White "Shytaj, Luca"]
[Black "Di Nicolantonio, Lucas"]
[Result "1/2-1/2"]
[ECO "C42"]
[WhiteElo "2490"]
[BlackElo "2379"]
[Annotator "ChessBase"]
[PlyCount "149"]
[EventDate "2019.05.27"]
[EventType "team-tourn"]
[EventCountry "SLO"]
[SourceTitle "playchess.com"]
[Source "ChessBase"]
[SourceQuality "1"]
[WhiteTeam "ITA"]
[BlackTeam "FRA"]
[BlackTeamCountry "FRA"]
[TimeControl "40/5400+30:1800+30"]

1. e4 {[%emt 0:00:00]} e5 {[%emt 0:00:00]} 2. Nf3 {[%emt 0:00:00]} Nf6 {[%emt 0:00:00]} 3. Nxe5 {[%emt 0:00:18]} d6 {[%emt 0:00:10]} 4. Nf3 {[%emt 0:00:42]} Nxe4 {[%emt 0:00:10]} 5. Bd3 {[%emt 0:01:02]} Nf6 {[%emt 0:05:58]} 6. O-O {[%emt 0:00:46]} Be7 {[%emt 0:00:31]} 7. c3 {[%emt 0:00:58]} O-O {[%emt 0:00:21]} 8. Bc2 {[%emt 0:01:37]} Bg4 {[%emt 0:09:34]} 9. d4 {[%emt 0:01:58]} Bh5 {[%emt 0:03:30]} 10. Re1 {[%emt 0:03:28]} d5 {[%emt 0:03:03]} 11. Nbd2 {[%emt 0:04:55]} Nbd7 {[%emt 0:08:02]} 12. Nf1 {[%emt 0:01:35]} Bg6 {[%emt 0:00:22]} 13. Bxg6 {[%emt 0:02:47]} hxg6 {[%emt 0:00:18]} 14. Bg5 {[%emt 0:03:11]} Re8 {[%emt 0:07:40]} 15. Qb3 {[%emt 0:02:59]} Nb6 {[%emt 0:06:08]} 16. Ne5 {[%emt 0:06:50]} Nfd7 {[%emt 0:06:00]} 17. Bf4 {[%emt 0:04:41]} Nxe5 {[%emt 0:02:19]} 18. Bxe5 {[%emt 0:05:46]} Qd7 {[%emt 0:04:12]} 19. a4 {[%emt 0:02:24]} a5 {[%emt 0:07:55]} 20. Ne3 {[%emt 0:02:18]} Bf8 {[%emt 0:01:30]} 21. h3 {[%emt 0:06:43]} Re6 {[%emt 0:01:49]} 22. Re2 {[%emt 0:06:18]} Qc6 {[%emt 0:06:03]} 23. Qb5 {[%emt 0:05:09]} Rae8 {[%emt 0:06:04]} 24. Rc2 {[%emt 0:07:02]} Be7 {[%emt 0:09:47]} 25. b4 {[%emt 0:11:04]} axb4 {[%emt 0:04:12]} 26. cxb4 {[%emt 0:00:41]} Qxb5 {[%emt 0:00:10]} 27. axb5 {[%emt 0:00:05]} c6 {[%emt 0:02:41]} 28. bxc6 {[%emt 0:00:47]} Rxc6 {[%emt 0:00:11]} 29. Rxc6 {[%emt 0:00:32]} bxc6 {[%emt 0:00:03]} 30. Ra6 {[%emt 0:00:05]} Nd7 {[%emt 0:04:03]} 31. Rxc6 {[%emt 0:00:50]} Nxe5 {[%emt 0:00:04]} 32. dxe5 {[%emt 0:00:05]} Bxb4 {[%emt 0:00:12]} 33. Nxd5 {[%emt 0:00:08]} Bf8 {[%emt 0:01:23]} 34. f4 {[%emt 0:01:47]} g5 {[%emt 0:00:34]} 35. g3 {[%emt 0:02:44]} gxf4 {[%emt 0:00:06]} 36. gxf4 {[%emt 0:00:03]} Rd8 {[%emt 0:00:16]} 37. Ne3 {[%emt 0:00:45]} g6 {[%emt 0:01:19]} 38. Kg2 {[%emt 0:02:41]} Bh6 {[%emt 0:01:19]} 39. Kf3 {[%emt 0:01:01]} Rd4 {[%emt 0:00:29]} 40. Rf6 {[%emt 0:00:00]} Bg7 {[%emt 0:00:00]} 41. Rd6 {[%emt 0:04:26]} Ra4 {[%emt 0:03:48]} 42. h4 {[%emt 0:06:50]} Ra3 {[%emt 0:10:02]} 43. Rd8+ {[%emt 0:04:13]} Kh7 {[%emt 0:04:18]} 44. Rd7 {[%emt 0:02:37]} Kg8 {[%emt 0:00:09]} 45. Rc7 {[%emt 0:02:20]} Bf8 {[%emt 0:06:19]} 46. Ke4 {[%emt 0:04:14]} Ra4+ {[%emt 0:00:48]} 47. Nc4 {[%emt 0:00:59]} Be7 {[%emt 0:02:32]} 48. f5 {[%emt 0:07:08]} gxf5+ {[%emt 0:00:25]} 49. Kxf5 {[%emt 0:00:06]} Bxh4 {[%emt 0:00:53]} 50. Nd6 {[%emt 0:00:10]} Bg3 {[%emt 0:02:19]} 51. Nxf7 {[%emt 0:00:41]} Bxe5 {[%emt 0:01:01]} 52. Nxe5 {[%emt 0:00:06]} Ra6 {[%emt 0:02:05]} 53. Nd7 {[%emt 0:00:20]} Ra1 {[%emt 0:00:55]} 54. Ne5 {[%emt 0:00:45]} Ra6 {[%emt 0:00:07]} 55. Rb7 {[%emt 0:00:27]} Kf8 {[%emt 0:01:07]} 56. Nd7+ {[%emt 0:00:24]} Ke8 {[%emt 0:00:13]} 57. Nc5 {[%emt 0:00:07]} Rc6 {[%emt 0:00:37]} 58. Ne6 {[%emt 0:00:43]} Rc1 {[%emt 0:00:30]} 59. Nf4 {[%emt 0:00:21]} Kd8 {[%emt 0:00:40]} 60. Nd5 {[%emt 0:00:15]} Re1 {[%emt 0:00:35]} 61. Nf6 {[%emt 0:00:35]} Kc8 {[%emt 0:00:16]} 62. Rg7 {[%emt 0:00:13]} Re2 {[%emt 0:00:32]} 63. Ne4 {[%emt 0:00:36]} Re1 {[%emt 0:01:04]} 64. Ke5 {[%emt 0:00:08]} Kb8 {[%emt 0:00:20]} 65. Re7 {[%emt 0:00:30]} Rd1 {[%emt 0:00:15]} 66. Rf7 {[%emt 0:00:18]} Kc8 {[%emt 0:01:15]} 67. Nc5 {[%emt 0:00:39]} Kd8 {[%emt 0:00:30]} 68. Ke6 {[%emt 0:00:18]} Re1+ {[%emt 0:00:14]} 69. Kd6 {[%emt 0:00:11]} Rd1+ {[%emt 0:00:08]} 70. Kc6 {[%emt 0:00:07]} Ke8 {[%emt 0:00:11]} 71. Rc7 {[%emt 0:00:22]} Rd2 {[%emt 0:00:32]} 72. Ra7 {[%emt 0:00:20]} Rd1 {[%emt 0:00:11]} 73. Ne4 {[%emt 0:00:08]} Kf8 {[%emt 0:00:14]} 74. Nf6 {[%emt 0:00:12]} Rd6+ {[%emt 0:00:20]} 75. Kxd6 {[%emt 0:00:16]} 1/2-1/2